fUSD/lending_fUSD_20250127
["ID","MTS","AMOUNT","RATE_DAILY","PERIOD"]
[350534113,1737948665215,-1084.69589719,0.00011896,2]
[350534114,1737948665225,-295.67972798,0.00011897,2]
[350534115,1737948665234,-200.0,0.00011898,2]
[350534116,1737948665244,-1186.32810913,0.00011899,2]
[350534117,1737948665254,-200.0,0.000119,2]
[350534118,1737948665264,-4525.46329949,0.000119,2]
[350534119,1737948665273,-2014.71570487,0.000119,2]
[350534120,1737948665283,-600.0,0.000119,4]
[350534121,1737948665293,-1018.0,0.000119,2]
[350534122,1737948665302,-295.67972798,0.000119,2]
[350534123,1737948665311,-200.0,0.00011901,2]
[350534124,1737948665321,-200.0,0.00011903,2]
[350534125,1737948665330,-200.0,0.00011905,2]
[350534126,1737948665339,-295.67972798,0.00011905,2]
[350534127,1737948665349,-530.73838969,0.00011908,2]
[350534128,1737948665359,-371.00563247,0.0001191,2]
[350534129,1737948665368,-1186.32810913,0.00011913,2]
[350534130,1737948665378,-8317.03541105,0.00011913,2]
[350534131,1737948665388,-200.0,0.00011913,2]
[350534132,1737948665400,-200.0,0.00011915,2]
[350534133,1737948665410,-200.0,0.00011915,2]
[350534134,1737948665420,-294.87214662,0.00011916,2]
[350534135,1737948665429,-200.0,0.00011917,2]
[350534136,1737948665441,-624.09004326,0.00011917,2]
[350534137,1737948665451,-200.0,0.00011919,2]
[350534138,1737948665460,-295.67972798,0.0001192,2]
[350534139,1737948665471,-814.94413237,0.0001199,2]
[350534140,1737948665482,-207.22650022,0.00011997,2]
[350534141,1737948665491,-500.0,0.00011997,2]
[350534142,1737948665501,-500.0,0.00011997,2]
[350534143,1737948665511,-500.0,0.00011997,2]
[350534144,1737948665520,-500.0,0.00011997,2]
[350534145,1737948665530,-500.0,0.00011997,2]
[350534146,1737948665678,-540.15,0.00011997,2]
[350534147,1737948665690,-500.0,0.00011997,2]
[350534148,1737948665701,-500.0,0.00011997,2]
[350534149,1737948665710,-500.0,0.00011997,2]
[350534150,1737948665720,-318.909365,0.00011997,2]
[350534151,1737948665729,-500.0,0.00011997,2]
[350534152,1737948665739,-106502.46185062,0.00011998,2]
[350534153,1737948665748,-1723.50072965,0.00011999,3]
[350534154,1737948665757,-500.0,0.00011999,2]
[350534155,1737948665766,-500.0,0.00011999,2]
[350534156,1737948665776,-500.0,0.00011999,2]
[350534157,1737948665785,-511.52,0.00011999,2]
[350534158,1737948665794,-500.0,0.00011999,2]
[350534159,1737948665803,-500.0,0.00011999,2]
[350534160,1737948665812,-500.0,0.00011999,2]
[350534161,1737948665821,-500.0,0.00011999,2]
[350534162,1737948665830,-500.0,0.00011999,2]
[350534163,1737948665840,-627.98,0.00011999,2]
[350534164,1737948665850,-500.0,0.00011999,2]
[350534165,1737948665859,-500.0,0.00011999,2]
[350534166,1737948665869,-500.0,0.00011999,2]
[350534167,1737948665878,-500.0,0.00011999,2]
[350534168,1737948665887,-607.9,0.00011999,2]
[350534169,1737948665897,-500.0,0.00011999,2]
[350534170,1737948665908,-500.0,0.00011999,2]
[350534171,1737948665917,-500.0,0.00011999,2]
[350534172,1737948665927,-500.0,0.00011999,2]
[350534173,1737948665938,-500.0,0.00011999,2]
[350534174,1737948665948,-179.03,0.00011999,2]
[350534175,1737948665958,-500.0,0.00011999,2]
[350534176,1737948665967,-207.57,0.00011999,2]
[350534177,1737948665976,-500.0,0.00011999,2]
[350534178,1737948665985,-500.0,0.00011999,2]
[350534179,1737948665994,-500.0,0.00011999,2]
[350534180,1737948666004,-500.0,0.00011999,2]
[350534181,1737948666013,-500.0,0.00011999,2]
[350534182,1737948666022,-500.0,0.00011999,2]
[350534183,1737948666032,-500.0,0.00011999,2]
[350534184,1737948666042,-500.0,0.00011999,2]
[350534185,1737948666052,-500.0,0.00011999,2]
[350534186,1737948666062,-500.0,0.00011999,2]
[350534187,1737948666071,-500.0,0.00011999,2]
[350534188,1737948666081,-500.0,0.00011999,2]
[350534189,1737948666090,-305.52,0.00011999,2]
[350534190,1737948666099,-229.93,0.00011999,2]
[350534191,1737948666108,-500.0,0.00011999,2]
[350534192,1737948666118,-500.0,0.00011999,2]
[350534193,1737948666128,-500.0,0.00011999,2]
[350534194,1737948666138,-500.0,0.00011999,2]
[350534195,1737948666147,-500.0,0.00011999,2]
[350534196,1737948666157,-500.0,0.00011999,2]
[350534197,1737948666166,-401.31700132,0.00011999,2]
[350534198,1737948666176,-500.0,0.00011999,2]
[350534199,1737948666186,-500.0,0.00011999,2]
[350534200,1737948666195,-500.0,0.00011999,2]
[350534201,1737948666204,-500.0,0.00011999,2]
[350534202,1737948666214,-500.0,0.00011999,2]
[350534203,1737948666223,-500.0,0.00011999,2]
[350534204,1737948666232,-500.0,0.00011999,2]
[350534205,1737948666242,-500.0,0.00011999,2]
[350534206,1737948666251,-627.92635663,0.00011999,2]
[350534207,1737948666260,-500.0,0.00011999,2]
[350534208,1737948666270,-500.0,0.00011999,2]
[350534209,1737948666278,-500.0,0.00011999,2]
[350534210,1737948666287,-532.66,0.00011999,2]
[350534211,1737948666297,-500.0,0.00011999,2]
[350534212,1737948666306,-500.0,0.00011999,2]
[350534213,1737948666315,-500.0,0.00011999,2]
[350534214,1737948666325,-456.48112101,0.00011999,2]
[350534215,1737948666334,-488.24736798,0.00011999,2]
[350534216,1737948666344,-500.0,0.00011999,2]
[350534217,1737948666354,-500.0,0.00011999,2]
[350534218,1737948666363,-500.0,0.00011999,2]
[350534219,1737948666373,-500.0,0.00011999,2]
[350534220,1737948666382,-500.0,0.00011999,2]
[350534221,1737948666391,-500.0,0.00011999,2]
[350534222,1737948666405,-345.15292699,0.00011999,2]
[350534223,1737948666415,-500.0,0.00011999,2]
[350534224,1737948666424,-303.05541455,0.00011999,2]
[350534225,1737948666435,-500.0,0.00011999,2]
[350534226,1737948666444,-500.0,0.00011999,2]
[350534227,1737948666453,-500.0,0.00011999,2]
[350534228,1737948666462,-500.0,0.00011999,2]
[350534229,1737948666472,-292.78,0.00011999,2]
[350534230,1737948666482,-500.0,0.00011999,2]
[350534231,1737948666492,-500.0,0.00011999,2]
[350534232,1737948666501,-454.65824106,0.00011999,2]
[350534233,1737948666510,-500.0,0.00011999,2]
[350534234,1737948666520,-500.0,0.00011999,2]
[350534235,1737948666530,-500.0,0.00011999,2]
[350534236,1737948666539,-500.0,0.00011999,2]
[350534237,1737948666549,-500.0,0.00011999,2]
[350534238,1737948666558,-500.0,0.00011999,2]
[350534239,1737948666567,-462.76,0.00011999,2]
[350534240,1737948666576,-500.0,0.00011999,2]
[350534241,1737948666585,-500.0,0.00011999,2]
[350534242,1737948666594,-500.0,0.00011999,2]
[350534243,1737948666604,-500.0,0.00011999,2]
[350534244,1737948666613,-500.0,0.00011999,2]
[350534245,1737948666622,-500.0,0.00011999,2]
[350534246,1737948666632,-457.6,0.00011999,2]
[350534247,1737948666641,-500.0,0.00011999,2]
[350534248,1737948666650,-500.0,0.00011999,2]
[350534249,1737948666659,-500.0,0.00011999,2]
[350534250,1737948666669,-500.0,0.00011999,2]
[350534251,1737948666678,-500.0,0.00011999,2]
[350534252,1737948666689,-500.0,0.00011999,2]
[350534253,1737948666698,-255.7015977,0.00011999,2]
[350534254,1737948666708,-500.0,0.00011999,2]
[350534255,1737948666717,-500.0,0.00011999,2]
[350534256,1737948666726,-614.36,0.00011999,2]
[350534257,1737948666735,-500.0,0.00011999,2]
[350534258,1737948666744,-500.0,0.00011999,2]
[350534259,1737948666754,-281.43,0.00011999,2]
[350534260,1737948666763,-423.75,0.00011999,2]
[350534261,1737948666773,-500.0,0.00011999,2]
[350534262,1737948666782,-598.47263434,0.00011999,2]
[350534263,1737948666792,-540.15,0.00011999,2]
[350534264,1737948666801,-540.15,0.00011999,2]
[350534265,1737948666810,-540.15,0.00011999,2]
[350534266,1737948666819,-540.15,0.00011999,2]
[350534267,1737948666829,-540.15,0.00011999,2]
[350534268,1737948666838,-540.15,0.00011999,2]
[350534269,1737948666848,-540.15,0.00011999,2]
[350534270,1737948666857,-540.15,0.00011999,2]
[350534271,1737948666867,-540.15,0.00011999,2]
[350534272,1737948666876,-540.15,0.00011999,2]
[350534273,1737948666885,-540.15,0.00011999,2]
[350534274,1737948666894,-540.15,0.00011999,2]
[350534275,1737948666903,-540.15,0.00011999,2]
[350534276,1737948666912,-540.19624128,0.00011999,2]
[350534277,1737948666922,-230.14998827,0.00011999,2]
[350534278,1737948666933,-500.0,0.00011999,2]
[350534279,1737948666943,-500.0,0.00011999,2]
[350534280,1737948666952,-589.54177044,0.00011999,2]
[350534281,1737948666961,-500.0,0.00011999,2]
[350534282,1737948666970,-500.0,0.00011999,2]
[350534283,1737948666980,-500.0,0.00011999,2]
[350534284,1737948666990,-500.0,0.00011999,2]
[350534285,1737948667000,-500.0,0.00011999,2]
[350534286,1737948667009,-500.0,0.00011999,2]
[350534287,1737948667019,-500.0,0.00011999,2]
[350534288,1737948667028,-231.13,0.00011999,2]
[350534289,1737948667038,-500.0,0.00011999,2]
[350534290,1737948667047,-500.0,0.00011999,2]
[350534291,1737948667056,-500.0,0.00011999,2]
[350534292,1737948667065,-500.0,0.00011999,2]
[350534293,1737948667074,-500.0,0.00011999,2]
[350534294,1737948667083,-500.0,0.00011999,2]
[350534295,1737948667092,-500.0,0.00011999,2]
[350534296,1737948667101,-204.69896513,0.00011999,2]
[350534297,1737948667111,-318.909365,0.00011999,2]
[350534298,1737948667120,-500.0,0.00011999,2]
[350534299,1737948667129,-318.909365,0.00011999,2]
[350534300,1737948667138,-500.0,0.00011999,2]
[350534301,1737948667148,-318.909365,0.00011999,2]
[350534302,1737948667157,-500.0,0.00011999,2]
[350534303,1737948667167,-500.0,0.00011999,2]
[350534304,1737948667177,-500.0,0.00011999,2]
[350534305,1737948667187,-228.17082746,0.00011999,2]
[350534306,1737948667196,-239.89,0.00011999,2]
[350534307,1737948667205,-645.06,0.00011999,2]
[350534308,1737948667214,-645.06,0.00011999,2]
[350534309,1737948667223,-645.06,0.00011999,2]
[350534310,1737948667232,-645.06,0.00011999,2]
[350534311,1737948667241,-645.06,0.00011999,2]
[350534312,1737948667250,-645.06,0.00011999,2]
[350534313,1737948667260,-645.06,0.00011999,2]
[350534314,1737948667269,-645.06,0.00011999,2]
[350534315,1737948667278,-645.06,0.00011999,2]
[350534316,1737948667287,-645.06,0.00011999,2]
[350534317,1737948667296,-645.06,0.00011999,2]
[350534318,1737948667306,-645.06,0.00011999,2]
[350534319,1737948667315,-645.06,0.00011999,2]
[350534320,1737948667325,-645.06,0.00011999,2]
[350534321,1737948667335,-645.13296725,0.00011999,2]
[350534322,1737948667344,-508.95458071,0.00011999,2]
[350534323,1737948667352,-500.0,0.00011999,2]
[350534324,1737948667361,-500.0,0.00011999,2]
[350534325,1737948667370,-500.0,0.00011999,2]
[350534326,1737948667379,-500.0,0.00011999,2]
[350534327,1737948667387,-500.0,0.00011999,2]
[350534328,1737948667400,-500.0,0.00011999,2]
[350534329,1737948667409,-500.0,0.00011999,2]
[350534330,1737948667418,-500.0,0.00011999,2]
[350534331,1737948667427,-300.69,0.00011999,2]
[350534332,1737948667438,-1490.92861475,0.00012,2]
[350534333,1737948667447,-87840.61543693,0.00012,2]
[350534334,1737948667792,-4646.83754033,0.00012,2]
[350534335,1737948667803,-1627.2,0.00012,2]
[350534336,1737948667823,-216.181539,0.00010958,2]
[350534337,1737948667831,-82.95550358,0.00012,2]
[350534338,1737948667842,-984.04,0.00012,2]
[350534339,1737948667864,-216.181539,0.00010958,2]
[350534340,1737948667874,-3855.08900262,0.00012,2]
[350534341,1737948667885,-9120.9,0.00012,2]
[350534342,1737948722850,176.0,9.454e-05,2]
[350534345,1737948874130,353.0,0.00022,120]
[350534368,1737949499527,164.48,0.00016658,30]
[350535780,1737949696207,428.11,8.495e-05,2]
[350535830,1737949831515,-512.34,0.0001,2]
[350535832,1737949831525,-500.0,0.0001,2]
[350535834,1737949831534,-494.36496,0.0001,2]
[350535837,1737949831569,-5.63504,0.0001,2]
[350535838,1737949831578,-500.0,0.0001,2]
[350535839,1737949831588,-500.0,0.0001,2]
[350535840,1737949831597,-245.62,0.0001,2]
[350535841,1737949831607,-167.62,0.00010137,2]
[350535842,1737949831617,-250.0,0.00010294,2]
[350535843,1737949831627,-272.9,0.00010327,2]
[350535844,1737949831638,-222.25,0.00010334,2]
[350535845,1737949831647,-1189.12,0.00010413,2]
[350535846,1737949831656,-250.0,0.00010424,2]
[350535847,1737949831666,-151.97,0.000105,2]
[350535848,1737949831676,-1000.0,0.00010509,2]
[350535849,1737949831685,-846.64,0.00010536,2]
[350535850,1737949831695,-725.63,0.00010536,2]
[350535851,1737949831704,-323.52,0.00010649,2]
[350535852,1737949831713,-428.11,0.00010759,2]
[350535853,1737949831723,-250.0,0.00010921,2]
[350535854,1737949831732,-150.0,0.00010957,2]
[350535855,1737949831741,-448.528878,0.00010958,2]
[350535856,1737949831751,-162.113317,0.00010958,2]
[350535857,1737949831760,-163.241455,0.00010958,2]
[350535858,1737949831769,-864.726164,0.00010958,2]
[350535859,1737949831779,-500.88072829,0.00010958,2]
[350535860,1737949831789,-500.0,0.00010958,2]
[350535861,1737949831799,-509.10567235,0.00010958,2]
[350535862,1737949831809,-500.0,0.00010958,2]
[350535863,1737949831819,-507.27398672,0.00010958,2]
[350535864,1737949831828,-500.0,0.00010958,2]
[350535865,1737949831838,-500.0,0.00010958,2]
[350535866,1737949831847,-500.0,0.00010958,2]
[350535867,1737949831856,-508.49426775,0.00010958,2]
[350535868,1737949831865,-508.97264046,0.00010958,2]
[350535869,1737949831880,-506.27085779,0.00010958,2]
[350535870,1737949831889,-500.0,0.00010958,2]
[350535871,1737949831898,-500.0,0.00010958,2]
[350535872,1737949831907,-500.0,0.00010958,2]
[350535873,1737949831916,-500.0,0.00010958,2]
[350535874,1737949831925,-500.0,0.00010958,2]
[350535875,1737949831935,-500.0,0.00010958,2]
[350535876,1737949831944,-500.0,0.00010958,2]
[350535877,1737949831954,-478.04140131,0.00010958,2]
[350535878,1737949831963,-500.0,0.00010958,2]
[350535879,1737949831981,-509.97340933,0.00010958,2]
[350535880,1737949831993,-500.0,0.00010958,2]
[350535882,1737949832002,-500.0,0.00010958,2]
[350535883,1737949832011,-504.11023112,0.00010958,2]
[350535884,1737949832021,-511.15424168,0.00010958,2]
[350535885,1737949832031,-500.0,0.00010958,2]
[350535886,1737949832040,-402.75772404,0.00010958,2]
[350535887,1737949832050,-500.0,0.00010958,2]
[350535889,1737949832059,-396.69281137,0.00010958,2]
[350535890,1737949832069,-289.8041703,0.00010958,2]
[350535891,1737949832079,-500.0,0.00010958,2]
[350535892,1737949832088,-500.0,0.00010958,2]
[350535893,1737949832098,-500.0,0.00010958,2]
[350535894,1737949832107,-500.0,0.00010958,2]
[350535895,1737949832118,-500.0,0.00010958,2]
[350535896,1737949832130,-500.0,0.00010958,2]
[350535897,1737949832139,-500.0,0.00010958,2]
[350535898,1737949832149,-500.0,0.00010958,2]
[350535900,1737949832159,-500.0,0.00010958,2]
[350535901,1737949832168,-213.89161808,0.00010958,2]
[350535903,1737949832178,-634.33043383,0.00010958,2]
[350535904,1737949832187,-502.31193745,0.00010958,2]
[350535905,1737949832197,-500.0,0.00010958,2]
[350535906,1737949832206,-500.0,0.00010958,2]
[350535908,1737949832215,-500.0,0.00010958,2]
[350535910,1737949832224,-500.0,0.00010958,2]
[350535912,1737949832233,-505.43522599,0.00010958,2]
[350535913,1737949832243,-500.0,0.00010958,2]
[350535914,1737949832252,-506.45241009,0.00010958,2]
[350535915,1737949832261,-502.19748389,0.00010958,2]
[350535916,1737949832270,-515.585354,0.00010958,2]
[350535917,1737949832279,-500.0,0.00010958,2]
[350535918,1737949832288,-513.65200176,0.00010958,2]
[350535919,1737949832297,-337.05809445,0.00010958,2]
[350535920,1737949832306,-518.99370435,0.00010958,2]
[350535921,1737949832315,-512.80471776,0.00010958,2]
[350535922,1737949832324,-509.56756581,0.00010958,2]
[350535923,1737949832333,-475.02266485,0.00010958,2]
[350535924,1737949832342,-504.06958666,0.00010958,2]
[350535925,1737949832352,-500.0,0.00010958,2]
[350535926,1737949832361,-424.25174367,0.00010958,2]
[350535927,1737949832370,-500.0,0.00010958,2]
[350535928,1737949832381,-508.2153132,0.00010958,2]
[350535929,1737949832391,-500.0,0.00010958,2]
[350535930,1737949832400,-500.0,0.00010958,2]
[350535931,1737949832409,-500.0,0.00010958,2]
[350535932,1737949832418,-202.78106849,0.00010958,2]
[350535933,1737949832427,-505.30378511,0.00010958,2]
[350535934,1737949832436,-505.64184512,0.00010958,2]
[350535935,1737949832445,-500.0,0.00010958,2]
[350535936,1737949832454,-505.00000746,0.00010958,2]
[350535937,1737949832463,-503.75523457,0.00010958,2]
[350535938,1737949832472,-506.26349077,0.00010958,2]
[350535939,1737949832481,-500.0,0.00010958,2]
[350535940,1737949832490,-506.67267286,0.00010958,2]
[350535941,1737949832499,-649.32463448,0.00010958,2]
[350535942,1737949832509,-500.95628271,0.00010958,2]
[350535943,1737949832518,-502.5502148,0.00010958,2]
[350535944,1737949832527,-505.29293841,0.00010958,2]
[350535945,1737949832536,-500.0,0.00010958,2]
[350535946,1737949832545,-506.9205611,0.00010958,2]
[350535947,1737949832554,-512.56147548,0.00010958,2]
[350535948,1737949832564,-507.15630755,0.00010958,2]
[350535949,1737949832573,-505.39102208,0.00010958,2]
[350535950,1737949832582,-506.47482825,0.00010958,2]
[350535951,1737949832591,-502.32286787,0.00010958,2]
[350535952,1737949832600,-608.64769462,0.00010958,2]
[350535953,1737949832610,-500.0,0.00010958,2]
[350535954,1737949832619,-325.43502522,0.00010958,2]
[350535955,1737949832639,-174.56497478,0.00010958,2]
[350535956,1737949832648,-376.06355258,0.00010958,2]
[350535957,1737949832659,-129.2648339,0.00010958,2]
[350535958,1737949832669,-500.0,0.00010958,2]
[350535959,1737949832678,-506.00605942,0.00010958,2]
[350535960,1737949832688,-500.0,0.00010958,2]
[350535961,1737949832697,-500.0,0.00010958,2]
[350535962,1737949832707,-500.0,0.00010958,2]
[350535963,1737949832716,-149.29365439,0.00010958,2]
[350535964,1737949832729,-361.22042495,0.00010958,2]
[350535965,1737949832738,-500.0,0.00010958,2]
[350535966,1737949832747,-503.78450006,0.00010958,2]
[350535967,1737949832757,-503.61777457,0.00010958,2]
[350535968,1737949832766,-502.80608784,0.00010958,2]
[350535969,1737949832775,-500.0,0.00010958,2]
[350535970,1737949832785,-508.84376953,0.00010958,2]
[350535971,1737949832798,-503.25374185,0.00010958,2]
[350535972,1737949832808,-512.21109221,0.00010958,2]
[350535973,1737949832818,-500.0,0.00010958,2]
[350535974,1737949832827,-500.0,0.00010958,2]
[350535975,1737949832837,-605.98414166,0.00010958,2]
[350535976,1737949832850,-513.64301843,0.00010958,2]
[350535977,1737949832859,-509.15629843,0.00010958,2]
[350535978,1737949832869,-503.99244482,0.00010958,2]
[350535979,1737949832880,-502.65218152,0.00010958,2]
[350535980,1737949832889,-502.28369151,0.00010958,2]
[350535981,1737949832898,-503.60515743,0.00010958,2]
[350535982,1737949832907,-505.74623647,0.00010958,2]
[350535983,1737949832917,-500.38593275,0.00010958,2]
[350535984,1737949832926,-511.48656097,0.00010958,2]
[350535985,1737949832935,-511.68262406,0.00010958,2]
[350535986,1737949832944,-505.64389852,0.00010958,2]
[350535987,1737949832954,-500.0,0.00010958,2]
[350535988,1737949832963,-500.0,0.00010958,2]
[350535989,1737949832972,-440.61267761,0.00010958,2]
[350535990,1737949832982,-500.0,0.00010958,2]
[350535991,1737949832993,-500.0,0.00010958,2]
[350535992,1737949833003,-500.0,0.00010958,2]
[350535993,1737949833012,-520.11509105,0.00010958,2]
[350535994,1737949833022,-500.0,0.00010958,2]
[350535995,1737949833032,-500.0,0.00010958,2]
[350535996,1737949833041,-501.28726316,0.00010958,2]
[350535997,1737949833051,-502.47363811,0.00010958,2]
[350535998,1737949833061,-500.0,0.00010958,2]
[350535999,1737949833071,-500.0,0.00010958,2]
[350536000,1737949833080,-500.0,0.00010958,2]
[350536001,1737949833090,-511.97814783,0.00010958,2]
[350536002,1737949833099,-530.50314095,0.00010958,2]
[350536003,1737949833108,-500.0,0.00010958,2]
[350536004,1737949833118,-450.0,0.00010958,2]
[350536005,1737949833131,-500.0,0.00010958,2]
[350536006,1737949833141,-229.51532641,0.00010958,2]
[350536007,1737949833152,-500.0,0.00010958,2]
[350536008,1737949833162,-328.73030679,0.00010958,2]
[350536009,1737949833172,-264.44,0.00010958,2]
[350536010,1737949833182,-500.0,0.00010958,2]
[350536011,1737949833191,-196.60089862,0.00010958,2]
[350536012,1737949833201,-500.0,0.00010958,2]
[350536013,1737949833211,-500.0,0.00010958,2]
[350536014,1737949833221,-505.07854561,0.00010958,2]
[350536015,1737949833230,-500.0,0.00010958,2]
[350536016,1737949833240,-513.27217408,0.00010958,2]
[350536017,1737949833249,-500.0,0.00010958,2]
[350536018,1737949833259,-500.0,0.00010958,2]
[350536019,1737949833268,-500.0,0.00010958,2]
[350536020,1737949833277,-500.0,0.00010958,2]
[350536021,1737949833287,-500.0,0.00010958,2]
[350536022,1737949833296,-500.0,0.00010958,2]
[350536023,1737949833305,-500.0,0.00010958,2]
[350536024,1737949833315,-264.11,0.00010958,2]
[350536025,1737949833326,-500.0,0.00010958,2]
[350536026,1737949833336,-539.08108261,0.00010958,2]
[350536027,1737949833346,-506.391334,0.00010958,2]
[350536028,1737949833356,-500.0,0.00010958,2]
[350536029,1737949833366,-500.0,0.00010958,2]
[350536030,1737949833375,-500.0,0.00010958,2]
[350536031,1737949833388,-500.0,0.00010958,2]
[350536032,1737949833398,-500.0,0.00010958,2]
[350536033,1737949833408,-500.0,0.00010958,2]
[350536034,1737949833417,-256.90713632,0.00010958,2]
[350536035,1737949833427,-500.0,0.00010958,2]
[350536036,1737949833437,-500.0,0.00010958,2]
[350536037,1737949833446,-504.42793454,0.00010958,2]
[350536038,1737949833455,-500.0,0.00010958,2]
[350536039,1737949833465,-500.0,0.00010958,2]
[350536040,1737949833475,-515.12747198,0.00010958,2]
[350536041,1737949833484,-500.0,0.00010958,2]
[350536042,1737949833494,-500.0,0.00010958,2]
[350536043,1737949833503,-500.0,0.00010958,2]
[350536044,1737949833513,-271.2397887,0.00010958,2]
[350536045,1737949833522,-500.0,0.00010958,2]
[350536046,1737949833532,-500.0,0.00010958,2]
[350536047,1737949833541,-516.42592517,0.00010958,2]
[350536048,1737949833551,-500.0,0.00010958,2]
[350536049,1737949833560,-507.34053735,0.00010958,2]
[350536050,1737949833570,-500.0,0.00010958,2]
[350536051,1737949833580,-510.31501245,0.00010958,2]
[350536052,1737949833590,-500.0,0.00010958,2]
[350536053,1737949833599,-279.87294326,0.00010958,2]
[350536054,1737949833609,-502.18710689,0.00010958,2]
[350536055,1737949833619,-500.0,0.00010958,2]
[350536056,1737949833631,-500.0,0.00010958,2]
[350536057,1737949833641,-500.0,0.00010958,2]
[350536058,1737949833651,-500.0,0.00010958,2]
[350536059,1737949833661,-517.42836064,0.00010958,2]
[350536060,1737949833671,-506.67308093,0.00010958,2]
[350536061,1737949833680,-500.0,0.00010958,2]
[350536062,1737949833690,-514.33516829,0.00010958,2]
[350536063,1737949833700,-508.75882089,0.00010958,2]
[350536064,1737949833709,-500.0,0.00010958,2]
[350536065,1737949833719,-507.15159076,0.00010958,2]
[350536066,1737949833729,-356.00030056,0.00010958,2]
[350536067,1737949833738,-501.34320672,0.00010958,2]
[350536068,1737949833748,-500.0,0.00010958,2]
[350536069,1737949833757,-500.0,0.00010958,2]
[350536070,1737949833767,-500.0,0.00010958,2]
[350536071,1737949833777,-518.64871375,0.00010958,2]
[350536072,1737949833787,-506.50839015,0.00010958,2]
[350536073,1737949833800,-503.56586546,0.00010958,2]
[350536074,1737949833811,-504.83183535,0.00010958,2]
[350536075,1737949833821,-503.92756425,0.00010958,2]
[350536076,1737949833831,-500.0,0.00010958,2]
[350536077,1737949833842,-500.0,0.00010958,2]
[350536078,1737949833852,-500.0,0.00010958,2]
[350536079,1737949833861,-500.0,0.00010958,2]
[350536080,1737949833871,-500.0,0.00010958,2]
[350536081,1737949833886,-500.0,0.00010958,2]
[350536082,1737949833896,-500.0,0.00010958,2]
[350536083,1737949833906,-500.0,0.00010958,2]
[350536084,1737949833916,-500.0,0.00010958,2]
[350536085,1737949833926,-500.0,0.00010958,2]
[350536086,1737949833937,-504.14602533,0.00010958,2]
[350536087,1737949833947,-500.0,0.00010958,2]
[350536088,1737949833958,-500.0,0.00010958,2]
[350536089,1737949833968,-500.0,0.00010958,2]
[350536090,1737949833977,-500.0,0.00010958,2]
[350536091,1737949833988,-500.0,0.00010958,2]
[350536092,1737949833998,-620.17680243,0.00010958,2]
[350536093,1737949834009,-500.0,0.00010958,2]
[350536094,1737949834019,-500.0,0.00010958,2]
[350536095,1737949834029,-500.0,0.00010958,2]
[350536096,1737949834039,-500.0,0.00010958,2]
[350536097,1737949834049,-506.8982188,0.00010958,2]
[350536098,1737949834059,-500.0,0.00010958,2]
[350536099,1737949834068,-500.0,0.00010958,2]
[350536100,1737949834078,-502.44570652,0.00010958,2]
[350536101,1737949834087,-316.45862747,0.00010958,2]
[350536102,1737949834097,-507.93563819,0.00010958,2]
[350536103,1737949834106,-500.0,0.00010958,2]
[350536104,1737949834116,-514.14510311,0.00010958,2]
[350536105,1737949834126,-500.0,0.00010958,2]
[350536106,1737949834139,-500.0,0.00010958,2]
[350536107,1737949834149,-500.0,0.00010958,2]